fUST/lending_fUST_20250206
["ID","MTS","AMOUNT","RATE_DAILY","PERIOD"]
[351834394,1738807842900,-695.81,0.00013835,2]
[351834395,1738807842911,-1254.98,0.00013835,2]
[351834396,1738807842920,-500.0,0.00013835,2]
[351834397,1738807842930,-504.01911731,0.00013835,2]
[351834398,1738807842941,-768.45,0.00013835,2]
[351834399,1738807842951,-500.0,0.00013835,2]
[351834400,1738807842962,-500.0,0.00013835,2]
[351834401,1738807842971,-503.54329957,0.00013835,2]
[351834402,1738807842982,-500.0,0.00013835,2]
[351834403,1738807842992,-501.60625755,0.00013835,2]
[351834404,1738807843002,-500.0,0.00013835,2]
[351834405,1738807843012,-555.28,0.00013835,2]
[351834406,1738807843022,-572.51,0.00013835,2]
[351834407,1738807843032,-501.70430555,0.00013835,2]
[351834409,1738807843042,-500.0,0.00013835,2]
[351834411,1738807843051,-500.0,0.00013835,2]
[351834412,1738807843061,-500.0,0.00013835,2]
[351834413,1738807843071,-502.8608562,0.00013835,2]
[351834414,1738807843080,-500.95,0.00013835,2]
[351834415,1738807843093,-656.79,0.00013835,2]
[351834416,1738807843102,-964.42,0.00013835,2]
[351834417,1738807843112,-500.0,0.00013835,2]
[351834418,1738807843124,-2274.46,0.00013835,2]
[351834419,1738807843134,-505.14199377,0.00013835,2]
[351834420,1738807843144,-504.76962267,0.00013835,2]
[351834421,1738807843154,-501.86018333,0.00013835,2]
[351834423,1738807843165,-501.67184584,0.00013835,2]
[351834424,1738807843175,-500.0,0.00013835,2]
[351834425,1738807843184,-500.0,0.00013835,2]
[351834426,1738807843196,-804.99,0.00013835,2]
[351834427,1738807843205,-500.0,0.00013835,2]
[351834428,1738807843215,-500.0,0.00013835,2]
[351834429,1738807843225,-501.99623265,0.00013835,2]
[351834430,1738807843234,-500.0,0.00013835,2]
[351834431,1738807843244,-500.0,0.00013835,2]
[351834432,1738807843253,-552.64499874,0.00013835,2]
[351834433,1738807843263,-500.0,0.00013835,2]
[351834434,1738807843272,-503.08464854,0.00013835,2]
[351834435,1738807843282,-2352.11,0.00013835,2]
[351834436,1738807843291,-1492.81,0.00013835,2]
[351834438,1738807843301,-699.1,0.00013835,2]
[351834439,1738807843311,-500.0,0.00013835,2]
[351834440,1738807843320,-500.0,0.00013835,2]
[351834441,1738807843330,-515.58,0.00013835,2]
[351834442,1738807843339,-452.60664755,0.00013835,2]
[351834443,1738807843350,-500.0,0.00013835,2]
[351834444,1738807843360,-500.0,0.00013835,2]
[351834445,1738807843369,-500.0,0.00013835,2]
[351834446,1738807843565,-500.0,0.00013835,2]
[351834447,1738807843575,-500.0,0.00013835,2]
[351834448,1738807843589,-500.0,0.00013835,2]
[351834449,1738807843599,-1159.73,0.00013835,2]
[351834450,1738807843609,-500.0,0.00013835,2]
[351834451,1738807843620,-685.87,0.00013835,2]
[351834452,1738807843629,-500.0,0.00013835,2]
[351834453,1738807843639,-500.0,0.00013835,2]
[351834454,1738807843649,-500.0,0.00013835,2]
[351834455,1738807843660,-500.0,0.00013835,2]
[351834456,1738807843670,-500.0,0.00013835,2]
[351834457,1738807843680,-1055.3,0.00013835,2]
[351834458,1738807843690,-1013.88,0.00013835,2]
[351834459,1738807843700,-692.68,0.00013835,2]
[351834460,1738807843711,-500.0,0.00013835,2]
[351834461,1738807843720,-501.81578211,0.00013835,2]
[351834462,1738807843730,-557.86,0.00013835,2]
[351834463,1738807843741,-554.59,0.00013835,2]
[351834464,1738807843751,-500.0,0.00013835,2]
[351834465,1738807843761,-1308.29,0.00013835,2]
[351834466,1738807843771,-500.0,0.00013835,2]
[351834467,1738807843781,-500.0,0.00013835,2]
[351834468,1738807843791,-500.0,0.00013835,2]
[351834469,1738807843800,-3102.93,0.00013835,2]
[351834470,1738807843811,-500.0,0.00013835,2]
[351834471,1738807843821,-899.08,0.00013835,2]
[351834472,1738807843832,-500.0,0.00013835,2]
[351834473,1738807843842,-500.0,0.00013835,2]
[351834474,1738807843852,-500.0,0.00013835,2]
[351834475,1738807843862,-582.36,0.00013835,2]
[351834476,1738807843872,-500.0,0.00013835,2]
[351834477,1738807843882,-742.97,0.00013835,2]
[351834478,1738807843892,-500.0,0.00013835,2]
[351834479,1738807843901,-1365.64,0.00013835,2]
[351834480,1738807843911,-500.0,0.00013835,2]
[351834481,1738807843921,-1593.86,0.00013835,2]
[351834482,1738807843931,-1209.23,0.00013835,2]
[351834483,1738807843941,-658.04,0.00013835,2]
[351834484,1738807843951,-500.0,0.00013835,2]
[351834485,1738807843960,-604.82,0.00013835,2]
[351834486,1738807843971,-500.0,0.00013835,2]
[351834487,1738807843982,-1295.52,0.00013835,2]
[351834488,1738807843991,-681.43,0.00013835,2]
[351834489,1738807844001,-165.21769357,0.00013835,2]
[351834490,1738807844012,-500.0,0.00013835,2]
[351834491,1738807844022,-505.44,0.00013835,2]
[351834492,1738807844034,-858.92,0.00013835,2]
[351834493,1738807844044,-810.32,0.00013835,2]
[351834494,1738807844054,-500.0,0.00013835,2]
[351834495,1738807844065,-500.0,0.00013835,2]
[351834496,1738807844075,-500.0,0.00013835,2]
[351834497,1738807844085,-503.80070308,0.00013835,2]
[351834498,1738807844096,-687.22,0.00013835,2]
[351834499,1738807844106,-2453.81,0.00013835,2]
[351834500,1738807844117,-500.0,0.00013835,2]
[351834501,1738807844128,-500.0,0.00013835,2]
[351834502,1738807844137,-500.0,0.00013835,2]
[351834503,1738807844147,-857.54,0.00013835,2]
[351834504,1738807844158,-501.49630569,0.00013835,2]
[351834505,1738807844167,-500.0,0.00013835,2]
[351834506,1738807844177,-500.0,0.00013835,2]
[351834507,1738807844187,-521.59,0.00013835,2]
[351834508,1738807844197,-500.0,0.00013835,2]
[351834509,1738807844208,-643.75,0.00013835,2]
[351834510,1738807844218,-771.52,0.00013835,2]
[351834511,1738807844227,-2268.59,0.00013835,2]
[351834512,1738807844237,-500.0,0.00013835,2]
[351834513,1738807844247,-504.02996214,0.00013835,2]
[351834514,1738807844256,-622.65,0.00013835,2]
[351834515,1738807844266,-500.0,0.00013835,2]
[351834516,1738807844275,-7350.29,0.00013835,2]
[351834517,1738807844285,-500.0,0.00013835,2]
[351834518,1738807844294,-11380.04,0.00013835,2]
[351834519,1738807844303,-501.6927292,0.00013835,2]
[351834520,1738807844313,-1079.11,0.00013835,2]
[351834521,1738807844323,-523.79,0.00013835,2]
[351834522,1738807844333,-501.97751876,0.00013835,2]
[351834523,1738807844342,-481.18012965,0.00013835,2]
[351834524,1738807844352,-500.0,0.00013835,2]
[351834525,1738807844361,-500.0,0.00013835,2]
[351834526,1738807844371,-500.0,0.00013835,2]
[351834527,1738807844380,-2191.63,0.00013835,2]
[351834528,1738807844390,-171.14742001,0.00013835,2]
[351834529,1738807844400,-966.91,0.00013835,2]
[351834530,1738807844410,-500.0,0.00013835,2]
[351834531,1738807844419,-500.0,0.00013835,2]
[351834532,1738807844429,-503.99465233,0.00013835,2]
[351834533,1738807844440,-500.0,0.00013835,2]
[351834534,1738807844450,-4771.45,0.00013835,2]
[351834535,1738807844460,-500.0,0.00013835,2]
[351834536,1738807844470,-1235.23,0.00013835,2]
[351834537,1738807844480,-1962.46,0.00013835,2]
[351834538,1738807844490,-946.02,0.00013835,2]
[351834539,1738807844500,-500.0,0.00013835,2]
[351834540,1738807844509,-500.0,0.00013835,2]
[351834541,1738807844519,-953.96,0.00013835,2]
[351834542,1738807844529,-500.0,0.00013835,2]
[351834543,1738807844539,-500.0,0.00013835,2]
[351834544,1738807844548,-6388.94,0.00013835,2]
[351834545,1738807844558,-500.0,0.00013835,2]
[351834546,1738807844568,-500.0,0.00013835,2]
[351834547,1738807844578,-4484.57,0.00013835,2]
[351834548,1738807844588,-528.99,0.00013835,2]
[351834549,1738807844600,-500.0,0.00013835,2]
[351834550,1738807844610,-609.8,0.00013835,2]
[351834551,1738807844620,-862.97,0.00013835,2]
[351834552,1738807844630,-767.25,0.00013835,2]
[351834553,1738807844640,-2256.26,0.00013835,2]
[351834554,1738807844650,-500.0,0.00013835,2]
[351834555,1738807844660,-500.0,0.00013835,2]
[351834556,1738807844670,-500.0,0.00013835,2]
[351834557,1738807844684,-1821.08,0.00013835,2]
[351834558,1738807844696,-500.0,0.00013835,2]
[351834559,1738807844706,-1258.2,0.00013835,2]
[351834560,1738807844716,-500.0,0.00013835,2]
[351834561,1738807844726,-6302.41182709,0.00013835,2]
[351834562,1738807845515,-500.0,0.00013698,2]
[351834563,1738807845526,-21865.39817291,0.00013835,2]
[351834564,1738807845536,-1709.38,0.00013835,2]
[351834565,1738807845546,-2010.16,0.00013835,2]
[351834566,1738807845555,-500.0,0.00013835,2]
[351834567,1738807845566,-500.0,0.00013835,2]
[351834568,1738807845576,-500.0,0.00013835,2]
[351834569,1738807845586,-500.0,0.00013835,2]
[351834570,1738807845598,-827.38,0.00013835,2]
[351834571,1738807845607,-5115.43774632,0.00013835,2]
[351834599,1738807846536,-500.0,0.00013698,2]
[351834601,1738807846546,-5559.204464,0.00013835,2]
[351834603,1738807846557,-2183.58619756,0.00013835,2]
[351834705,1738808158713,10000.0,8e-05,2]
[351834706,1738808171361,4620.87,8e-05,2]
[351834707,1738808171398,5379.13,8e-05,2]
[351834708,1738808186851,2325.65,8e-05,2]
[351834744,1738809032621,-301.105,0.00013424,2]
[351834745,1738809032631,-300.0,0.00013528,2]
[351834746,1738809032643,-2332.92947455,0.00013529,2]
[351834747,1738809032665,-10485.61359681,0.00013529,2]
[351834748,1738809032675,-160.0,0.00013596,3]
[351834749,1738809032686,-395.22007051,0.00013598,2]
[351834750,1738809032695,-1450.37700911,0.00013599,2]
[351834751,1738809032705,-60590.42206979,0.00013688,2]
[351834752,1738809032715,-11350.12176953,0.00013693,2]
[351834753,1738809032724,-559.27052828,0.00013697,2]
[351834754,1738809032734,-500.0,0.00013697,2]
[351834757,1738809032924,-171.4922281,0.00013697,2]
[351834758,1738809032935,-185.2912165,0.00013697,2]
[351834759,1738809032944,-500.0,0.00013697,2]
[351834760,1738809032955,-500.0,0.00013697,2]
[351834761,1738809032965,-500.0,0.00013698,2]
[351834762,1738809032975,-501.42280111,0.00013698,2]
[351834763,1738809032985,-383.02853692,0.00013698,2]
[351834764,1738809032995,-504.77411914,0.00013698,2]
[351834765,1738809033004,-500.0,0.00013698,2]
[351834766,1738809033014,-498.70071267,0.00013698,2]
[351834767,1738809033028,-501.10727482,0.00013698,2]
[351834768,1738809033038,-502.87430555,0.00013698,2]
[351834769,1738809033049,-500.0,0.00013698,2]
[351834770,1738809033060,-500.0,0.00013698,2]
[351834771,1738809033071,-500.0,0.00013698,2]
[351834772,1738809033082,-500.0,0.00013698,2]
[351834773,1738809033092,-500.0,0.00013698,2]
[351834774,1738809033102,-500.0,0.00013698,2]
[351834775,1738809033113,-500.0,0.00013698,2]
[351834776,1738809033123,-500.0,0.00013698,2]
[351834777,1738809033133,-500.0,0.00013698,2]
[351834778,1738809033147,-492.29944088,0.00013698,2]
[351834779,1738809033158,-500.0,0.00013698,2]
[351834780,1738809033169,-500.0,0.00013698,2]
[351834781,1738809033180,-500.0,0.00013698,2]
[351834782,1738809033190,-500.70937849,0.00013698,2]
[351834783,1738809033200,-501.68248842,0.00013698,2]
[351834784,1738809033210,-500.0,0.00013698,2]
[351834785,1738809033220,-500.0,0.00013698,2]
[351834786,1738809033231,-500.0,0.00013698,2]
[351834787,1738809033241,-500.0,0.00013698,2]
[351834788,1738809033251,-1020.87,0.00013698,2]
[351834789,1738809033261,-501.67945155,0.00013698,2]
[351834790,1738809033271,-500.0,0.00013698,2]
[351834791,1738809033281,-385.8977865,0.00013698,2]
[351834792,1738809033291,-501.75390507,0.00013698,2]
[351834793,1738809033302,-614.40158692,0.00013698,2]
[351834794,1738809033312,-500.0,0.00013698,2]
[351834795,1738809033323,-501.98519877,0.00013698,2]
[351834796,1738809033333,-501.48972988,0.00013698,2]
[351834797,1738809033344,-500.0,0.00013698,2]
[351834798,1738809033354,-501.08357234,0.00013698,2]
[351834799,1738809033364,-500.0,0.00013698,2]
[351834800,1738809033374,-500.0,0.00013698,2]
[351834801,1738809033385,-500.0,0.00013698,2]
[351834802,1738809033399,-500.0,0.00013698,2]
[351834803,1738809033409,-564.16707846,0.00013698,2]
[351834804,1738809033419,-500.0,0.00013698,2]
[351834805,1738809033429,-297.42627168,0.00013698,2]
[351834806,1738809033440,-500.0,0.00013698,2]
[351834807,1738809033451,-501.85521853,0.00013698,2]
[351834808,1738809033461,-500.39995728,0.00013698,2]
[351834809,1738809033471,-500.0,0.00013698,2]
[351834810,1738809033482,-500.0,0.00013698,2]
[351834811,1738809033491,-543.59047918,0.00013698,2]
[351834812,1738809033501,-500.0,0.00013698,2]
[351834813,1738809033516,-500.0,0.00013698,2]
[351834814,1738809033526,-500.0,0.00013698,2]
[351834815,1738809033536,-564.97661339,0.00013698,2]
[351834816,1738809033547,-500.0,0.00013698,2]
[351834817,1738809033558,-500.0,0.00013698,2]
[351834818,1738809033567,-500.0,0.00013698,2]
[351834819,1738809033577,-501.17604116,0.00013698,2]
[351834820,1738809033589,-502.66568798,0.00013698,2]
[351834821,1738809033600,-500.0,0.00013698,2]
[351834822,1738809033610,-500.0,0.00013698,2]
[351834823,1738809033620,-227.06241825,0.00013698,2]
[351834824,1738809033630,-500.0,0.00013698,2]
[351834825,1738809033640,-500.0,0.00013698,2]
[351834826,1738809033651,-502.29632294,0.00013698,2]
[351834827,1738809033661,-717.9,0.00013698,2]
[351834828,1738809033670,-500.0,0.00013698,2]
[351834829,1738809033680,-502.43284416,0.00013698,2]
[351834830,1738809033691,-500.0,0.00013698,2]
[351834831,1738809033701,-233.07381779,0.00013698,2]
[351834832,1738809033710,-500.0,0.00013698,2]
[351834833,1738809033719,-500.0,0.00013698,2]
[351834834,1738809033729,-500.0,0.00013698,2]
[351834835,1738809033739,-615.21,0.00013698,2]
[351834836,1738809033748,-504.50743247,0.00013698,2]
[351834837,1738809033757,-500.0,0.00013698,2]
[351834838,1738809033768,-500.0,0.00013698,2]
[351834839,1738809033778,-500.0,0.00013698,2]
[351834840,1738809033788,-500.0,0.00013698,2]
[351834841,1738809033798,-500.0,0.00013698,2]
[351834842,1738809033807,-500.0,0.00013698,2]
[351834843,1738809033817,-500.0,0.00013698,2]
[351834844,1738809033827,-515.37719589,0.00013698,2]
[351834845,1738809033837,-503.21224491,0.00013698,2]
[351834846,1738809033847,-500.0,0.00013698,2]
[351834847,1738809033855,-500.0,0.00013698,2]
[351834848,1738809033864,-500.0,0.00013698,2]
[351834849,1738809033874,-500.0,0.00013698,2]
[351834850,1738809033883,-500.0,0.00013698,2]
[351834851,1738809033893,-500.0,0.00013698,2]
[351834852,1738809033902,-500.0,0.00013698,2]
[351834853,1738809033911,-500.0,0.00013698,2]
[351834854,1738809033920,-500.0,0.00013698,2]
[351834855,1738809033930,-500.69664345,0.00013698,2]
[351834856,1738809033940,-500.0,0.00013698,2]
[351834857,1738809033949,-504.15867914,0.00013698,2]
[351834858,1738809033960,-500.0,0.00013698,2]
[351834859,1738809033969,-503.06016151,0.00013698,2]
[351834860,1738809033978,-500.0,0.00013698,2]
[351834861,1738809033988,-500.0,0.00013698,2]
[351834862,1738809033998,-500.0,0.00013698,2]
[351834863,1738809034008,-500.0,0.00013698,2]
[351834864,1738809034017,-500.0,0.00013698,2]
[351834865,1738809034027,-500.0,0.00013698,2]
[351834866,1738809034037,-543.76,0.00013698,2]
[351834867,1738809034046,-500.0,0.00013698,2]
[351834868,1738809034056,-500.0,0.00013698,2]
[351834869,1738809034067,-604.93301759,0.00013698,2]
[351834870,1738809034077,-502.13361939,0.00013698,2]
[351834871,1738809034087,-500.0,0.00013698,2]
[351834872,1738809034097,-500.86823899,0.00013698,2]
[351834873,1738809034107,-502.64764013,0.00013698,2]
[351834874,1738809034117,-500.84161005,0.00013698,2]
[351834875,1738809034127,-501.37379601,0.00013698,2]
[351834876,1738809034137,-500.0,0.00013698,2]
[351834877,1738809034149,-500.0,0.00013698,2]
[351834878,1738809034159,-502.41910538,0.00013698,2]
[351834879,1738809034169,-500.0,0.00013698,2]
[351834880,1738809034178,-500.0,0.00013698,2]
[351834881,1738809034188,-500.0,0.00013698,2]
[351834882,1738809034198,-500.0,0.00013698,2]
[351834883,1738809034208,-351.13415322,0.00013698,2]
[351834884,1738809034217,-247.44693155,0.00013698,2]
[351834885,1738809034227,-502.82918451,0.00013698,2]
[351834886,1738809034236,-501.23284527,0.00013698,2]
[351834887,1738809034247,-500.0,0.00013698,2]
[351834888,1738809034256,-500.0,0.00013698,2]
[351834889,1738809034266,-501.29220172,0.00013698,2]
[351834890,1738809034276,-500.0,0.00013698,2]
[351834891,1738809034286,-501.2548056,0.00013698,2]
[351834892,1738809034296,-537.85171496,0.00013698,2]
[351834893,1738809034306,-500.0,0.00013698,2]
[351834894,1738809034316,-500.0,0.00013698,2]
[351834895,1738809034326,-380.19414387,0.00013698,2]
[351834896,1738809034336,-500.0,0.00013698,2]
[351834897,1738809034345,-1386.01,0.00013698,2]
[351834898,1738809034356,-500.60604017,0.00013698,2]
[351834899,1738809034365,-500.41966368,0.00013698,2]
[351834900,1738809034375,-501.49573064,0.00013698,2]
[351834901,1738809034385,-501.53055952,0.00013698,2]
[351834902,1738809034396,-500.84765131,0.00013698,2]
[351834903,1738809034406,-500.0,0.00013698,2]
[351834904,1738809034415,-496.35165081,0.00013698,2]
[351834905,1738809034425,-500.0,0.00013698,2]
[351834906,1738809034435,-500.0,0.00013698,2]
[351834907,1738809034444,-500.66862255,0.00013698,2]
[351834908,1738809034454,-500.0,0.00013698,2]
[351834909,1738809034464,-500.0,0.00013698,2]
[351834910,1738809034474,-500.71409751,0.00013698,2]
[351834911,1738809034484,-599.54,0.00013698,2]
[351834912,1738809034494,-501.6339645,0.00013698,2]
[351834913,1738809034503,-500.0,0.00013698,2]
[351834914,1738809034517,-500.0,0.00013698,2]
[351834915,1738809034527,-500.0,0.00013698,2]
[351834916,1738809034536,-569.4906904,0.00013698,2]
[351834917,1738809034547,-500.0,0.00013698,2]
[351834918,1738809034556,-500.0,0.00013698,2]
[351834919,1738809034566,-500.32809588,0.00013698,2]
[351834920,1738809034575,-528.88,0.00013698,2]
[351834921,1738809034585,-500.0,0.00013698,2]
[351834922,1738809034595,-212.458573,0.00013698,2]
[351834923,1738809034604,-151.099769,0.00013698,2]
[351834924,1738809034613,-500.0,0.00013698,2]
[351834925,1738809034623,-501.8110336,0.00013698,2]
[351834926,1738809034632,-651.95,0.00013698,2]
[351834927,1738809034641,-500.0,0.00013698,2]
[351834928,1738809034654,-500.0,0.00013698,2]
[351834929,1738809034664,-500.0,0.00013698,2]
[351834930,1738809034675,-504.76318605,0.00013698,2]
[351834931,1738809034685,-503.02617967,0.00013698,2]
[351834932,1738809034694,-500.0,0.00013698,2]
[351834933,1738809034704,-500.0,0.00013698,2]
[351834934,1738809034714,-503.27900421,0.00013698,2]
[351834935,1738809034723,-504.69125852,0.00013698,2]
[351834936,1738809034734,-500.0,0.00013698,2]
[351834937,1738809034743,-500.0,0.00013698,2]
[351834938,1738809034753,-504.52965178,0.00013698,2]
[351834939,1738809034762,-917.1,0.00013698,2]
[351834940,1738809034772,-503.98437801,0.00013698,2]
[351834941,1738809034782,-503.53245811,0.00013698,2]
[351834942,1738809034791,-500.0,0.00013698,2]
[351834943,1738809034800,-500.0,0.00013698,2]
[351834944,1738809034810,-500.0,0.00013698,2]
[351834945,1738809034819,-500.0,0.00013698,2]
[351834946,1738809034829,-544.93,0.00013698,2]
[351834947,1738809034838,-547.7386624,0.00013698,2]
[351834948,1738809034847,-246.67663345,0.00013698,2]
[351834949,1738809034856,-1340.22,0.00013698,2]
[351834950,1738809034866,-542.43,0.00013698,2]
[351834951,1738809034876,-504.43437492,0.00013698,2]
[351834952,1738809034885,-500.0,0.00013698,2]
[351834953,1738809034896,-521.77063219,0.00013698,2]
[351834954,1738809034906,-500.32086417,0.00013698,2]
[351834955,1738809034916,-715.88,0.00013698,2]
[351834956,1738809034925,-500.0,0.00013698,2]
[351834957,1738809034935,-500.0,0.00013698,2]
[351834958,1738809034945,-500.0,0.00013698,2]
[351834959,1738809034955,-1326.31,0.00013698,2]
[351834960,1738809034965,-502.79603949,0.00013698,2]
[351834961,1738809034974,-500.0,0.00013698,2]
[351834962,1738809034984,-500.0,0.00013698,2]
[351834963,1738809034994,-238.62430997,0.00013698,2]
[351834964,1738809035004,-502.51498375,0.00013698,2]
[351834965,1738809035014,-500.0,0.00013698,2]
[351834966,1738809035024,-500.0,0.00013698,2]
[351834967,1738809035033,-500.0,0.00013698,2]
[351834968,1738809035042,-1436.41,0.00013698,2]
[351834969,1738809035052,-500.0,0.00013698,2]
[351834970,1738809035062,-500.0,0.00013698,2]
[351834971,1738809035072,-500.0,0.00013698,2]
[351834972,1738809035082,-151.0,0.00013698,2]
[351834973,1738809035092,-500.0,0.00013698,2]
[351834974,1738809035102,-500.0,0.00013698,2]
[351834975,1738809035111,-637.88,0.00013698,2]
[351834976,1738809035121,-502.16310251,0.00013698,2]
[351834977,1738809035130,-500.0,0.00013698,2]
[351834978,1738809035140,-1253.59,0.00013698,2]
[351834979,1738809035151,-151.185973,0.00013698,2]
[351834980,1738809035161,-500.0,0.00013698,2]
[351834981,1738809035170,-556.78,0.00013698,2]
[351834982,1738809035181,-454.97614596,0.00013698,2]
[351834983,1738809035192,-671.09,0.00013698,2]
[351834984,1738809035202,-595.08147119,0.00013698,2]
[351834985,1738809035212,-500.0,0.00013698,2]
[351834986,1738809035222,-500.0,0.00013698,2]
[351834987,1738809035232,-745.16,0.00013698,2]
[351834988,1738809035242,-947.44,0.00013698,2]
[351834989,1738809035252,-501.68774286,0.00013698,2]
[351834990,1738809035262,-151.0,0.00013698,2]
[351834991,1738809035271,-151.0,0.00013698,2]
[351834992,1738809035284,-503.67107063,0.00013698,2]
[351834993,1738809035295,-151.0,0.00013698,2]
[351834994,1738809035305,-500.0,0.00013698,2]
[351834995,1738809035315,-151.0,0.00013698,2]
[351834996,1738809035324,-500.0,0.00013698,2]
[351834997,1738809035334,-503.03256543,0.00013698,2]
[351834998,1738809035343,-965.91,0.00013698,2]
[351834999,1738809035353,-151.0,0.00013698,2]
[351835000,1738809035362,-175.209086,0.00013698,2]
[351835001,1738809035372,-503.54807667,0.00013698,2]
[351835002,1738809035382,-152.748831,0.00013698,2]
[351835003,1738809035391,-500.0,0.00013698,2]
[351835004,1738809035402,-505.29975992,0.00013698,2]
[351835005,1738809035411,-500.0,0.00013698,2]
[351835006,1738809035421,-553.28,0.00013698,2]
[351835007,1738809035431,-778.1,0.00013698,2]
[351835008,1738809035440,-500.0,0.00013698,2]
[351835009,1738809035449,-557.95667892,0.00013698,2]
[351835010,1738809035459,-550.1,0.00013698,2]
[351835011,1738809035468,-813.12,0.00013698,2]
[351835012,1738809035477,-501.94375795,0.00013698,2]
[351835013,1738809035487,-151.0,0.00013698,2]
[351835014,1738809035496,-151.143969,0.00013698,2]
[351835015,1738809035505,-500.0,0.00013698,2]
[351835016,1738809035519,-500.0,0.00013698,2]
[351835017,1738809035528,-500.0,0.00013698,2]
[351835018,1738809035538,-1178.36,0.00013698,2]
[351835019,1738809035553,-500.0,0.00013698,2]
[351835020,1738809035562,-500.0,0.00013698,2]
[351835021,1738809035571,-500.0,0.00013698,2]
[351835022,1738809035580,-500.0,0.00013698,2]
[351835023,1738809035590,-503.25910106,0.00013698,2]
[351835024,1738809035599,-151.0,0.00013698,2]
[351835025,1738809035609,-151.0,0.00013698,2]
[351835026,1738809035619,-501.65,0.00013698,2]
[351835027,1738809035628,-501.65,0.00013698,2]
[351835028,1738809035638,-500.0,0.00013698,2]
[351835029,1738809035649,-501.65,0.00013698,2]
[351835030,1738809035658,-501.65,0.00013698,2]
[351835031,1738809035667,-2281.43,0.00013698,2]
[351835032,1738809035676,-501.65,0.00013698,2]
[351835033,1738809035685,-501.65,0.00013698,2]
[351835034,1738809035694,-501.65,0.00013698,2]
[351835035,1738809035818,-501.65,0.00013698,2]
[351835036,1738809035844,-501.65,0.00013698,2]
[351835037,1738809035853,-501.65,0.00013698,2]
[351835038,1738809035862,-501.65,0.00013698,2]
[351835039,1738809035871,-500.0,0.00013698,2]
[351835040,1738809035880,-155.731515,0.00013698,2]
[351835041,1738809035890,-501.65,0.00013698,2]
[351835042,1738809035904,-501.65,0.00013698,2]
[351835043,1738809035914,-501.65,0.00013698,2]
[351835044,1738809035923,-500.0,0.00013698,2]
[351835045,1738809035933,-501.65,0.00013698,2]
[351835046,1738809035943,-501.65,0.00013698,2]
[351835047,1738809035952,-501.65,0.00013698,2]
[351835048,1738809035962,-501.65,0.00013698,2]
[351835049,1738809035972,-501.65,0.00013698,2]
[351835050,1738809035981,-501.65,0.00013698,2]
[351835051,1738809035991,-501.65,0.00013698,2]
[351835052,1738809036000,-501.65,0.00013698,2]
[351835053,1738809036010,-501.65,0.00013698,2]
[351835054,1738809036020,-501.66565051,0.00013698,2]
[351835055,1738809036030,-503.56959623,0.00013698,2]
[351835056,1738809036039,-500.0,0.00013698,2]
[351835057,1738809036049,-151.0,0.00013698,2]
[351835058,1738809036061,-151.0,0.00013698,2]
[351835059,1738809036070,-500.0,0.00013698,2]
[351835060,1738809036080,-500.0,0.00013698,2]
[351835061,1738809036089,-1530.48,0.00013698,2]
[351835062,1738809036099,-353.54874337,0.00013698,2]
[351835063,1738809036109,-501.18437889,0.00013698,2]
[351835064,1738809036118,-151.0,0.00013698,2]